fUSD/lending_fUSD_20240319
["ID","MTS","AMOUNT","RATE_DAILY","PERIOD"]
[319533439,1710827540077,-3530.08,0.00056438,120]
[319533440,1710827540088,-3588.24,0.00056438,120]
[319533441,1710827540098,-891.74,0.00056438,120]
[319533442,1710827540109,-3450.35,0.00056438,120]
[319533443,1710827540122,-626.54902905,0.00056438,120]
[319533444,1710827540133,-6392.13,0.00056438,120]
[319533445,1710827540143,-500.0,0.00056438,120]
[319533446,1710827540154,-818.66,0.00056438,120]
[319533447,1710827540165,-2217.17,0.00056438,120]
[319533448,1710827540175,-477.87401258,0.00056438,120]
[319533449,1710827540193,-22.12598742,0.00056438,120]
[319533450,1710827540203,-712.28,0.00056438,120]
[319533451,1710827540214,-509.79,0.00056438,120]
[319533452,1710827540225,-3319.69,0.00056438,120]
[319533453,1710827540235,-690.54,0.00056438,120]
[319533454,1710827540246,-500.0,0.00056438,120]
[319533455,1710827540256,-1812.93,0.00056438,120]
[319533456,1710827540271,-500.0,0.00056438,120]
[319533457,1710827540281,-500.0,0.00056438,120]
[319533458,1710827540291,-1962.31,0.00056438,120]
[319533459,1710827540302,-500.0,0.00056438,120]
[319533460,1710827540312,-500.0,0.00056438,120]
[319533461,1710827540322,-3097.92,0.00056438,120]
[319533462,1710827540332,-500.0,0.00056438,120]
[319533463,1710827540341,-1154.31,0.00056438,120]
[319533464,1710827540350,-685.32,0.00056438,120]
[319533465,1710827540360,-2420.04,0.00056438,120]
[319533466,1710827540370,-1532.56,0.00056438,120]
[319533467,1710827540379,-500.0,0.00056438,120]
[319533468,1710827540388,-157.5515782,0.00056438,120]
[319533469,1710827540398,-500.0,0.00056438,120]
[319533470,1710827540407,-1200.6,0.00056438,120]
[319533471,1710827540416,-1037.55,0.00056438,120]
[319533472,1710827540427,-500.0,0.00056438,120]
[319533473,1710827540437,-1040.71,0.00056438,120]
[319533474,1710827540446,-10993.53,0.00056438,120]
[319533475,1710827540455,-2840.09,0.00056438,120]
[319533476,1710827540466,-500.0,0.00056438,120]
[319533477,1710827540476,-489.0147155,0.00056438,120]
[319533478,1710827540485,-500.0,0.00056438,120]
[319533479,1710827540495,-2830.68,0.00056438,120]
[319533480,1710827540505,-2822.24,0.00056438,120]
[319533481,1710827540519,-646.52,0.00056438,120]
[319533482,1710827540530,-2123.57,0.00056438,120]
[319533483,1710827540540,-1966.25,0.00056438,120]
[319533484,1710827540550,-649.44,0.00056438,120]
[319533485,1710827540561,-500.0,0.00056438,120]
[319533486,1710827540572,-500.0,0.00056438,120]
[319533487,1710827540582,-1134.96,0.00056438,120]
[319533488,1710827540593,-1047.73,0.00056438,120]
[319533489,1710827540604,-500.0,0.00056438,120]
[319533490,1710827540614,-500.0,0.00056438,120]
[319533491,1710827540624,-500.0,0.00056438,120]
[319533492,1710827540636,-3745.32,0.00056438,120]
[319533493,1710827540646,-500.0,0.00056438,120]
[319533494,1710827540657,-1379.72,0.00056438,120]
[319533495,1710827540666,-500.0,0.00056438,120]
[319533496,1710827540676,-500.0,0.00056438,120]
[319533497,1710827540686,-1229.29,0.00056438,120]
[319533498,1710827540696,-743.99,0.00056438,120]
[319533499,1710827540706,-500.0,0.00056438,120]
[319533500,1710827540716,-500.0,0.00056438,120]
[319533501,1710827540726,-628.13,0.00056438,120]
[319533502,1710827540737,-1973.36,0.00056438,120]
[319533503,1710827540747,-850.45,0.00056438,120]
[319533504,1710827540756,-643.65,0.00056438,120]
[319533505,1710827540770,-1436.94,0.00056438,120]
[319533506,1710827540781,-1623.87,0.00056438,120]
[319533507,1710827540791,-1386.7,0.00056438,120]
[319533508,1710827540801,-2995.94,0.00056438,120]
[319533509,1710827540812,-500.0,0.00056438,120]
[319533510,1710827540823,-1797.16,0.00056438,120]
[319533511,1710827540832,-1038.84,0.00056438,120]
[319533512,1710827540843,-653.57,0.00056438,120]
[319533513,1710827540853,-6815.41,0.00056438,120]
[319533514,1710827540863,-501.57981447,0.00056438,120]
[319533515,1710827540873,-436.24740463,0.00056438,120]
[319533516,1710827540884,-844.11,0.00056438,120]
[319533517,1710827540895,-500.0,0.00056438,120]
[319533518,1710827540905,-2518.17,0.00056438,21]
[319533519,1710827540916,-500.0,0.00056438,120]
[319533520,1710827540926,-500.0,0.00056438,120]
[319533521,1710827540936,-500.0,0.00056438,120]
[319533522,1710827540947,-500.0,0.00056438,120]
[319533523,1710827540957,-1249.47,0.00056438,120]
[319533524,1710827540967,-8128.88,0.00056438,120]
[319533525,1710827540977,-644.09,0.00056438,120]
[319533526,1710827540988,-2104.14,0.00056438,120]
[319533527,1710827540998,-500.0,0.00056438,120]
[319533528,1710827541012,-520.51,0.00056438,120]
[319533529,1710827541022,-500.0,0.00056438,120]
[319533530,1710827541032,-500.0,0.00056438,120]
[319533531,1710827541042,-500.0,0.00056438,120]
[319533532,1710827541052,-523.88,0.00056438,120]
[319533533,1710827541063,-4987.59,0.00056438,120]
[319533534,1710827541073,-1329.62,0.00056438,120]
[319533535,1710827541083,-500.0,0.00056438,120]
[319533536,1710827541094,-2650.41,0.00056438,120]
[319533537,1710827541103,-8315.42,0.00056438,120]
[319533538,1710827541114,-2122.55,0.00056438,120]
[319533539,1710827541124,-8238.56,0.00056438,120]
[319533540,1710827541134,-882.83,0.00056438,120]
[319533541,1710827541144,-500.0,0.00056438,120]
[319533542,1710827541155,-500.0,0.00056438,120]
[319533543,1710827541166,-1643.06,0.00056438,120]
[319533544,1710827541176,-500.0,0.00056438,120]
[319533545,1710827541187,-500.0,0.00056438,120]
[319533546,1710827541199,-870.48,0.00056438,120]
[319533547,1710827541210,-884.71,0.00056438,120]
[319533548,1710827541221,-242.54752883,0.00056438,120]
[319533549,1710827541232,-3569.24,0.00056438,120]
[319533550,1710827541241,-3795.75,0.00056438,120]
[319533551,1710827541251,-500.0,0.00056438,120]
[319533552,1710827541265,-500.0,0.00056438,120]
[319533553,1710827541275,-500.0,0.00056438,120]
[319533554,1710827541286,-1245.02,0.00056438,120]
[319533555,1710827541296,-1136.5,0.00056438,120]
[319533556,1710827541305,-1319.6,0.00056438,120]
[319533557,1710827541315,-500.0,0.00056438,120]
[319533558,1710827541324,-500.0,0.00056438,120]
[319533559,1710827541333,-4709.5,0.00056438,120]
[319533560,1710827541343,-1151.39,0.00056438,120]
[319533561,1710827541353,-2980.53,0.00056438,120]
[319533562,1710827541362,-500.0,0.00056438,120]
[319533563,1710827541372,-500.0,0.00056438,120]
[319533564,1710827541381,-500.0,0.00056438,120]
[319533565,1710827541391,-500.0,0.00056438,120]
[319533566,1710827541402,-702.42764033,0.00056438,120]
[319533567,1710827541423,-380.58789646,0.00055616,120]
[319533568,1710827541440,-151.0,0.00051167,120]
[319533569,1710827541450,-255.33210354,0.00055616,120]
[319533570,1710827541460,-402.89235967,0.00056438,120]
[319533571,1710827541470,-4069.3781943,0.00056438,120]
[319533572,1710827541482,-259.18728211,0.00056438,120]
[319533573,1710827541493,-4179.64452359,0.00056438,120]
[319533574,1710827541503,-867.0038171,0.00056438,120]
[319533575,1710827541518,-628.8061829,0.00056438,120]
[319533576,1710827541527,-567.99200579,0.00056438,120]
[319533577,1710827542502,-151.0,0.00052924,120]
[319533578,1710827542517,-489.66755299,0.00053276,30]
[319533579,1710827542529,-339.04276058,0.00053276,30]
[319533580,1710827542547,-2658.27032895,0.00053276,30]
[319533581,1710827542557,-500.0,0.00054794,120]
[319533582,1710827542568,-500.0,0.00055068,120]
[319533583,1710827542578,-500.0,0.00055342,120]
[319533584,1710827542588,-500.0,0.00055616,120]
[319533585,1710827542597,-500.0,0.00055616,120]
[319533586,1710827542607,-635.92,0.0005589,120]
[319533587,1710827542616,-500.0,0.0005589,120]
[319533588,1710827542626,-409.16986739,0.0005589,120]
[319533589,1710827542635,-635.92,0.00056164,120]
[319533590,1710827542645,-500.0,0.00056164,120]
[319533591,1710827542654,-75.14799421,0.00056438,120]
[319533592,1710827542663,-553.8,0.00056438,120]
[319533593,1710827542674,-500.0,0.00056438,120]
[319533594,1710827542683,-500.0,0.00056438,120]
[319533595,1710827542693,-150.61730945,0.00056438,120]
[319533596,1710827542842,-361.55558872,0.00056438,120]
[319533597,1710827542853,-998.57,0.00056438,120]
[319533598,1710827542864,-769.96,0.00056438,120]
[319533599,1710827542876,-520.44690792,0.00056438,120]
[319533600,1710827542889,-79.50481213,0.00056438,120]
[319533601,1710827542903,-875.02518787,0.00056438,120]
[319533602,1710827542914,-477.02021213,0.00056438,120]
[319533603,1710827542925,-930.2696,0.00056438,120]
[319533604,1710827543028,-420.47794452,0.00048227,4]
[319533605,1710827543038,-1567.30701671,0.00056438,120]
[319533606,1710827543050,-5305.06900384,0.00056438,120]
[319533607,1710827543753,-1400.0,0.00054043,120]
[319533608,1710827543766,-500.499154,0.00054794,120]
[319533609,1710827543775,-3871.9635166,0.00054794,120]
[319533610,1710827543870,-548.0,0.000416,5]
[319533611,1710827543880,-4040.4064834,0.00054794,120]
[319533612,1710827543890,-500.0,0.00054794,120]
[319533613,1710827543900,-500.0,0.00054794,120]
[319533614,1710827543909,-500.0,0.00054794,120]
[319533615,1710827543919,-500.0,0.00054794,120]
[319533616,1710827543930,-628.59335442,0.00054794,2]
[319533617,1710827543940,-4046.91438753,0.00055068,120]
[319533618,1710827543973,-3270.14828423,0.00055068,120]
[319533619,1710827543984,-595.30732824,0.00055068,120]
[319533620,1710827543995,-45.31589247,0.00055068,120]
[319533621,1710827544019,-454.68410753,0.00055068,120]
[319533622,1710827544029,-4130.07906361,0.00055342,120]
[319533623,1710827544041,-997.959463,0.00055342,120]
[319533624,1710827544062,-787.66947898,0.00055342,120]
[319533625,1710827544073,-326.045,0.00055342,120]
[319533626,1710827544086,-1670.61699441,0.00055342,120]
[319533627,1710827544096,-500.0,0.00055342,120]
[319533628,1710827544186,-1197.38300559,0.00055616,120]
[319533629,1710827544199,-782.508,0.00055616,120]
[319533630,1710827544222,-369.15130269,0.00054794,120]
[319533631,1710827544233,-130.84869731,0.00054794,120]
[319533632,1710827544243,-2514.28773051,0.00055616,120]
[319533633,1710827544254,-311.92743084,0.00055616,120]
[319533635,1710827548174,3995.88920533,0.0001527,2]
[319533636,1710827551462,193950.5092281,0.00014,2]
[319533637,1710827551487,106000.0,0.00014,2]
[319533639,1710827613049,524.62273325,0.00014,3]
[319533643,1710827674226,262.31136662,0.00014,3]
[319533645,1710827733412,262.31136662,0.00014,3]
[319533648,1710827853614,163.99,0.0002322,120]
[319533649,1710828113584,150.93,0.00010963,2]
[319533650,1710828430809,164.17,0.0001,5]
[319533662,1710828585165,150.93,0.00010292,2]
[319533670,1710828632370,-351.10664586,0.00012208,2]
[319533671,1710828632435,-4025.5502745,0.00012208,2]
[319533672,1710828632445,-1286.09,0.00012209,2]
[319533673,1710828632455,-250.0,0.00012227,2]
[319533674,1710828632464,-200.0,0.00012244,2]
[319533675,1710828632474,-500.0,0.00012274,2]
[319533676,1710828632483,-2685.07296228,0.000125,2]
[319533677,1710828632493,-180.64,0.00012512,2]
[319533678,1710828632503,-150.0,0.00012522,2]
[319533679,1710828632513,-300.0,0.00012522,2]
[319533680,1710828632522,-150.0,0.00012522,2]
[319533681,1710828632532,-23880.0,0.00012523,2]
[319533682,1710828632541,-225.19,0.00012536,2]
[319533683,1710828632551,-669.53,0.0001259,2]
[319533684,1710828632561,-188.38,0.00012663,2]
[319533685,1710828632571,-11023.42180301,0.00012917,2]
[319533686,1710828632582,-667.93727272,0.00012917,2]
[319533687,1710828632601,-609.86344662,0.00012917,2]
[319533688,1710828632613,-255.97559429,0.00012917,2]
[319533689,1710828632625,-1876.8742553,0.00012917,2]
[319533690,1710828632641,-2086.15674442,0.00012917,2]
[319533691,1710828632656,-615.25441392,0.00012917,2]
[319533692,1710828632667,-1008.9263289,0.00012917,2]
[319533693,1710828632679,-676.94313705,0.00012917,2]
[319533694,1710828632690,-544.02,0.00012917,2]
[319533695,1710828632702,-355.11093409,0.00012917,2]
[319533696,1710828632722,-323.0436316,0.00012917,2]
[319533854,1710828638391,-882.16640859,0.00012917,2]
[319533858,1710828638409,-2577.1541702,0.00012917,2]
[319533862,1710828638421,-10441.17998013,0.00012917,2]
[319533868,1710828638433,-122114.30273548,0.00012917,2]
[319533885,1710828638488,-3678.24169276,0.00012917,2]
[319533890,1710828638500,-1540.57199321,0.00012917,2]
[319533895,1710828638512,-1981.1914489,0.00012917,2]
[319533900,1710828638529,-3727.95180027,0.00012917,2]
[319533905,1710828638541,-3689.73606,0.00012917,2]
[319533915,1710828638571,-13679.97614854,0.00012917,2]
[319533918,1710828638581,-150.93,0.0001298,2]
[319533921,1710828638590,-188.38,0.00012993,2]
[319533924,1710828638599,-356.4,0.00013,2]
[319533927,1710828638610,-159.07608537,0.00013079,2]
[319533930,1710828638620,-159.07608529,0.0001313,2]
[319533933,1710828638629,-159.07608529,0.00013182,2]
[319533936,1710828638638,-185.62,0.00013196,2]
[319533938,1710828638648,-159.07608529,0.00013233,2]
[319533941,1710828638660,-159.07608529,0.00013284,2]
[319533944,1710828638669,-150.99,0.00013284,2]
[319533948,1710828638678,-499.99,0.00013284,2]
[319533951,1710828638687,-497.03,0.00013296,2]
[319533954,1710828638697,-155.35456407,0.00013312,2]
[319533957,1710828638706,-22811.86805223,0.00013312,2]
[319533959,1710828638715,-157.74681008,0.00013312,2]
[319533962,1710828638724,-374.75452883,0.00013312,2]
[319533965,1710828638733,-200.77694229,0.00013312,2]
[319533968,1710828638743,-155.21184533,0.00013312,2]
[319533971,1710828638752,-1953.04656482,0.00013312,2]
[319533974,1710828638761,-256.89939333,0.00013312,2]
[319533976,1710828638770,-155.5937766,0.00013312,2]
[319533978,1710828638779,-3357.84626022,0.00013312,2]
[319533980,1710828638788,-205.1716943,0.00013312,2]
[319533982,1710828638797,-155.30536455,0.00013312,2]
[319533984,1710828638807,-236.39847973,0.00013312,2]
[319533986,1710828638816,-1239.0744,0.00013312,2]
[319533988,1710828638827,-340.59530613,0.00013312,2]
[319533990,1710828638836,-179.69640477,0.00013312,2]
[319533992,1710828638846,-155.0,0.00013312,2]
[319533995,1710828638855,-2163.23429142,0.00013313,2]
[319533998,1710828638864,-188.38,0.00013323,2]
[319534001,1710828638873,-159.07608529,0.00013336,2]
[319534003,1710828638882,-159.07608529,0.00013387,2]
[319534004,1710828638891,-174.73,0.0001341,2]
[319534007,1710828638904,-159.07608529,0.00013438,2]
[319534009,1710828638913,-168.39,0.00013481,2]
[319534011,1710828638923,-323.05,0.00013481,2]
[319534013,1710828638932,-159.07608529,0.0001349,2]
[319534015,1710828638941,-159.07608529,0.00013541,2]
[319534017,1710828638950,-159.07608529,0.00013592,2]
[319534019,1710828638959,-159.07608529,0.00013643,2]
[319534021,1710828638968,-159.07608529,0.00013695,2]
[319534023,1710828638977,-288.12,0.00013699,2]
[319534025,1710828638987,-200.0,0.00013699,2]
[319534027,1710828638996,-250.0,0.00013699,2]
[319534028,1710828639006,-5000.0,0.00013699,2]
[319534030,1710828639015,-163.47,0.00013699,2]
[319534032,1710828639025,-159.07608529,0.00013746,2]
[319534034,1710828639034,-210.0,0.00013774,2]
[319534035,1710828639044,-168.39,0.00013796,2]
[319534036,1710828639054,-159.07608529,0.00013797,2]
[319534037,1710828639065,-159.07608529,0.00013849,2]
[319534039,1710828639074,-159.07608529,0.000139,2]
[319534041,1710828639085,-453.96504131,0.000139,2]
[319534043,1710828639094,-152.25679466,0.000139,2]
[319534045,1710828639103,-170.29,0.00013955,2]
[319534047,1710828639115,-155.46952768,0.00013989,2]
[319534048,1710828639124,-1585.53257438,0.00013999,2]
[319534049,1710828639134,-39347.194328,0.00013999,2]
[319534050,1710828639147,-908.63777929,0.00013999,2]
[319534051,1710828639189,-559.8252313,0.00013999,2]
[319534052,1710828639201,-4402.28764937,0.00013999,2]
[319534053,1710828639213,-355022.09642709,0.00013999,2]
[319534054,1710828639222,-2681529.30742514,0.00014,2]
[319534055,1710828639241,-758.11221771,0.00014,2]
[319534060,1710828640621,-543.62108514,0.00014,2]
[319534061,1710828640632,-899.9997,0.00014,2]
[319534062,1710828640643,-834.41039019,0.00014,2]
[319534063,1710828640699,-475.0,0.00014,2]
[319534064,1710828640710,-3709.00320002,0.00014,2]
[319534065,1710828640721,-651.9241,0.00014,2]
[319534066,1710828640733,-3701.92626517,0.00014,2]
[319534067,1710828640780,-3334.64070629,0.00014,2]
[319534068,1710828640818,-893.0,0.00014,2]
[319534069,1710828640854,-1195.70259647,0.00014,2]
[319534070,1710828640866,-2658.68,0.00014,2]
[319534072,1710828640887,-1085584.37285616,0.00014,2]
[319534074,1710828640899,-284973.84132797,0.00014,2]
[319534075,1710828640940,-1801.3774315,0.00014,2]
[319534076,1710828640952,-433.0670006,0.00014,2]
[319534077,1710828640963,-35000.421246,0.00014,2]
[319534078,1710828641140,-1312.0,0.00014,2]
[319534079,1710828641158,-326.481155,0.00014,2]
[319534094,1710828643497,-1024.54392919,0.000139,2]
[319534095,1710828643506,-1585.01607081,0.00014,2]
[319534096,1710828643517,-9279.33412153,0.00014,2]
[319534097,1710828643529,-32658.31337066,0.00014,2]
[319534098,1710828643788,-282.5036651,0.00014,2]
[319534099,1710828643813,-931.13278959,0.00014,2]
[319534100,1710828643840,-4540.0,0.00014,2]
[319534101,1710828643851,-7570.31054748,0.00014,2]
[319534102,1710828643863,-591.13842867,0.00014,2]
[319534103,1710828643874,-460.24314984,0.00014,2]
[319534104,1710828643944,-924.25,0.00014,2]
[319534106,1710828643988,-5997.00242401,0.00014,2]
[319534108,1710828644064,-428.31956452,0.00014,2]
[319534119,1710828646403,-6873.00433478,0.00014,2]
[319534120,1710828646487,-1583.12167693,0.00014,2]
[319534121,1710828646500,-2522.0,0.00014,2]
[319534122,1710828646513,-294.83806546,0.00014,2]
[319534123,1710828646525,-12832.83424242,0.00014,2]
[319534124,1710828646538,-3264.192354,0.00014,2]
[319534125,1710828646584,-66164.89766062,0.00014,2]
[319534126,1710828646605,-418.15056468,0.00014,2]
[319534127,1710828646616,-1318.699999,0.00014,2]
[319534128,1710828646656,-337389.42037798,0.00014,2]
[319534129,1710828646674,-270.162,0.00014,2]
[319534130,1710828646732,-7405.60000003,0.00014,2]
[319534131,1710828646747,-1270.17409974,0.00014,2]
[319534132,1710828646759,-10274.52145092,0.00014,2]
[319534133,1710828646770,-13406.30917255,0.00014,2]
[319534134,1710828646783,-16989.91276986,0.00014,2]
[319534135,1710828646806,-219050.74626717,0.00014,2]
[319534136,1710828646818,-12285.45831732,0.00014,2]
[319534137,1710828660421,150.0,0.00010292,2]
[319534138,1710828660454,174.43040931,0.00010292,2]
[319534139,1710828660478,7.41830559,0.00010292,2]
[319534141,1710828709591,1785.53618659,0.00010499,2]
[319534147,1710828815333,-4376.65692036,0.00013899,2]
[319534148,1710828815360,-2575.56459465,0.000139,2]
[319534149,1710828815387,-165.76965711,0.000139,2]
[319534150,1710828815417,-260.0,0.00013998,2]
[319534151,1710828815441,-150.0,0.00013998,2]
[319534152,1710828815466,-297.77501202,0.00013999,2]
[319534153,1710828815492,-787.51305735,0.00013999,2]
[319534154,1710828815519,-44586.72075851,0.00014,2]
[319534155,1710828882265,-4181.97567405,0.00013999,2]
[319534156,1710828882295,-13818.02432595,0.00014,2]
[319534157,1710829005286,-488.45658994,0.00013999,2]
[319534158,1710829005311,-59045.54341006,0.00014,2]
[319534159,1710829101492,-260.57,0.00013699,2]
[319534160,1710829207394,171.4,0.00012891,2]
[319534175,1710829285022,150.72773007,0.00013699,2]
[319534177,1710829559996,-355.0,0.00013721,2]
[319534178,1710829560030,-678.0,0.00013799,2]
[319534179,1710829560064,-273.37745435,0.000138,2]
[319534180,1710829560097,-500.0,0.000138,2]
[319534181,1710829560132,-520.67,0.00013836,2]
[319534182,1710829560165,-250.0,0.00013895,2]
[319534183,1710829560199,-152.25679466,0.000139,2]
[319534184,1710829560218,-355.0,0.000139,2]
[319534185,1710829560233,-678.0,0.000139,2]
[319534186,1710829560253,-273.37745435,0.000139,2]
[319534187,1710829560269,-500.0,0.000139,2]
[319534188,1710829560280,-520.67,0.000139,2]
[319534189,1710829560291,-250.0,0.000139,2]
[319534190,1710829560307,-152.25679466,0.000139,2]
[319534191,1710829560318,-6212.6453197,0.000139,2]
[319534197,1710829632625,162.83,0.00012353,2]
[319534198,1710829641082,178.13317892,0.000139,3]
[319534199,1710829744302,412.96823037,0.000139,10]
[319534200,1710829747707,2526.42321814,0.00012,2]
[319534201,1710829750997,405.78863325,0.00013483,2]
[319534206,1710829754778,351.21345468,0.00011198,2]
[319534207,1710829754812,1790.21546602,0.00010499,2]
[319534208,1710829769617,1580.83149784,0.00012,2]
[319534229,1710829831687,-656.563415,0.000119,2]
[319534230,1710829831698,-520.58436441,0.00012,2]
[319534231,1710829831707,-412.0230646,0.00012,2]
[319534232,1710829831719,-300.6296171,0.00012,2]
[319534233,1710829831731,-416.28538549,0.00012,2]
[319534234,1710829831743,-86.1042508,0.00012,2]
[319534235,1710829831809,-191.60143468,0.00012,2]
[319534236,1710829831822,-1185.18944276,0.00012,2]
[319534237,1710829831832,-805.91613623,0.00012,2]
[319534238,1710829831846,-317.4229103,0.00012,2]
[319534239,1710829831860,-323.58583455,0.00012,2]
[319534240,1710829831871,-295.18591355,0.00012,2]
[319534241,1710829831882,-178.59400723,0.00012,2]
[319534242,1710829831892,-2109.07092012,0.00013657,2]
[319534243,1710829831905,-923.58946258,0.00013657,2]
[319534244,1710829831917,-6261.46074753,0.00013657,2]
[319534245,1710829831930,-2021.94401166,0.00013657,2]
[319534246,1710829831952,-1456.56797611,0.00013657,2]
[319534247,1710829831962,-500.0,0.00013699,2]
[319534248,1710829831972,-1032.24,0.00013726,2]
[319534249,1710829831983,-369.87,0.00013836,2]
[319534250,1710829831994,-597.63,0.00013857,2]
[319534251,1710829832004,-251.08584582,0.00013858,2]
[319534253,1710829832014,-436.78349246,0.000139,2]
[319534255,1710829832027,-621.26693883,0.000139,2]
[319534258,1710829832037,-1000.0,0.000139,2]
[319534259,1710829832050,-892.41613881,0.000139,2]
[319534269,1710829832094,-825.44838676,0.000139,2]
[319534271,1710829832109,-1526.57249385,0.000139,2]
[319534273,1710829832121,-327.01287504,0.000139,2]
[319534285,1710829832227,-2261.33162603,0.000139,2]
[319534353,1710829837610,-2316.27425732,0.000139,2]
[319534355,1710829837624,-407.88192219,0.000139,2]
[319534357,1710829837634,-155.11496273,0.000139,2]
[319534359,1710829837645,-1092.55311498,0.000139,2]
[319534366,1710829837706,-366.86,0.000139,2]
[319534377,1710829837798,-2370.0445488,0.000139,2]
[319534379,1710829837809,-939.48406829,0.000139,2]
[319534381,1710829837819,-205.65651303,0.000139,2]
[319534383,1710829837828,-1080.8769,0.000139,2]
[319534385,1710829837839,-933.24510772,0.000139,2]
[319534387,1710829837849,-193.5,0.00013972,2]
[319534388,1710829837861,-200.0,0.00013996,2]
[319534389,1710829837871,-7778.08720519,0.00013998,2]
[319534390,1710829837880,-1220.63459765,0.00013998,2]
[319534391,1710829837890,-155.0,0.00013998,2]
[319534392,1710829837899,-773.80072084,0.00013998,2]
[319534393,1710829837909,-400.0,0.00013998,2]
[319534394,1710829837923,-20990.59707007,0.00013998,2]
[319534395,1710829837935,-5394.19084299,0.00013998,2]
[319534396,1710829837945,-2695.88920573,0.00013999,2]
[319534397,1710829837957,-604.06079428,0.00013999,2]
[319534398,1710829837966,-202.74751577,0.00013999,2]
[319534399,1710829837976,-741.94991514,0.00014,2]
[319534400,1710829837988,-3263.79441072,0.00014,2]
[319534401,1710829838000,-2917.42170074,0.00014,2]
[319534402,1710829838013,-784.2102453,0.00014,2]
[319534403,1710829838042,-3194.31095684,0.00014,2]
[319534404,1710829838054,-29196.73803907,0.00014,2]
[319534406,1710829838066,-438.56217193,0.00014,2]
[319534409,1710829838100,-370.96436731,0.00014,2]
[319534428,1710829839830,-705.72,0.00014,2]
[319534429,1710829839842,-3501.96,0.00014,2]
[319534430,1710829839859,-500.0,0.00014,2]
[319534431,1710829839873,-250.0,0.00014,2]
[319534432,1710829839887,-1366.10895729,0.00014,2]
[319534433,1710829839953,-163812.66447265,0.00014,2]
[319534434,1710829839968,-74031.81189459,0.00014,2]
[319534435,1710829840080,-944.58478271,0.00014,2]
[319534436,1710829840092,-5161.87513485,0.00014,2]
[319534458,1710829842681,-1301.7,0.00014,2]
[319534463,1710829842720,-11147.29962502,0.00014,2]
[319534465,1710829842733,-651.06340159,0.00014,2]
[319534469,1710829842764,-320.26401847,0.00014,2]
[319534471,1710829842776,-33773.73373879,0.00014,2]
[319534479,1710829842840,-6489.28809889,0.00014,2]
[319534481,1710829842852,-3097.70689365,0.00014,2]
[319534483,1710829842866,-1695850.0,0.00014,2]
[319534498,1710829843027,-9432.18682328,0.00014,2]
[319534500,1710829843038,-835.04991627,0.00014,2]
[319534503,1710829843050,-820.86672367,0.00014,2]
[319534562,1710829845634,-178.59400723,0.00012,2]
[319534563,1710829845645,-295.18591355,0.00012,2]
[319534564,1710829845655,-2789.21050656,0.00013999,2]
[319534565,1710829845668,-20876.85348861,0.00013999,2]
[319534566,1710829845713,-507.30573655,0.00013999,2]
[319534567,1710829845729,-3849.52455761,0.00013999,2]
[319534568,1710829845739,-10231.73478836,0.00014,2]
[319534569,1710829845752,-7729.32326802,0.00014,2]
[319534570,1710829845915,-6895.33541699,0.00014,2]
[319534571,1710829845932,-323593.85228093,0.00014,2]
[319534572,1710829845945,-650.22347624,0.00014,2]
[319534573,1710829845977,-578.97664646,0.00014,2]
[319534574,1710829845988,-3160.5631174,0.00014,2]
[319534575,1710829846021,-260.57637641,0.00014,2]
[319534579,1710829846060,-4940.94527216,0.00014,2]
[319534582,1710829846102,-1311.8634666,0.00014,2]
[319534584,1710829846140,-440.8415158,0.00014,2]
[319534585,1710829846153,-2215.38535822,0.00014,2]
[319534586,1710829846166,-438.95090746,0.00014,2]
[319534588,1710829846178,-2649.44658219,0.00014,2]
[319534595,1710829956426,150.0,0.000118,2]